bitfinex-derivatives/quotes_SOLF0:USTF0_20241027
["timestamp","ask_amount","ask_price","bid_price","bid_amount"]
[1730014690693,4.06,173.18,173.14,5.04749376]
[1730014690881,4.06,173.18,173.15,5.04749376]
[1730014691085,4.06,173.18,173.13,7.09946863]
[1730014691086,4.06,173.18,173.16,2.8906]
[1730014693187,4.06,173.18,173.16,9.99006863]
[1730014693488,101.20228,173.21,173.15,7.09946863]
[1730014693690,4.06,173.2,173.18,2.8903]
[1730014694891,11.15946863,173.2,173.18,2.8903]
[1730014695193,11.15946863,173.2,173.17,2.8905]
[1730014696184,7.09946863,173.18,173.15,2.8909]
[1730014696390,7.09946863,173.16,173.15,2.8909]
[1730014698294,11.15946863,173.16,173.12,2.8914]
[1730014698494,7.09946863,173.14,173.12,2.8914]
[1730014698796,7.09946863,173.14,173.13,5.04868683]
[1730014699201,7.09946863,173.14,173.12,2.8914]
[1730014701295,4.06,173.16,173.12,2.8914]
[1730014701492,7.09946863,173.15,173.12,2.8914]
[1730014701691,7.09946863,173.15,173.13,7.94140011]
[1730014701891,7.09946863,173.15,173.13,2.8913]
[1730014702403,4.06,173.16,173.14,2.8911]
[1730014713602,9.99046863,173.15,173.11,2.8916]
[1730014713906,7.09946863,173.12,173.11,2.8916]
[1730014714109,7.09946863,173.12,173.11,7.94465879]
[1730014716803,7.09946863,173.12,173.11,5.05305879]
[1730014717010,7.09946863,173.12,173.07,1.1983]
[1730014717011,11.15946863,173.12,173.07,1.1983]
[1730014717212,7.09946863,173.1,173.08,5.05609465]
[1730014717507,7.09946863,173.1,173.09,5.05609465]
[1730014719395,7.09946863,173.1,173.04,7.09946863]
[1730014719600,7.09946863,173.1,173.05,5.05499261]
[1730014719802,4.06,173.12,173.06,12.15446124]
[1730014720003,7.09946863,173.09,173.07,5.05499261]
[1730014720208,7.09946863,173.09,173.08,5.05499261]
[1730014720797,7.09946863,173.09,173.08,5.05443828]
[1730014721001,7.09946863,173.09,173.04,7.09946863]
[1730014721204,7.09946863,173.09,173.05,5.05444299]
[1730014721407,7.09946863,173.09,173.07,2.8922]
[1730014721610,7.09946863,173.09,173.08,5.05444299]
[1730014721802,7.09946863,173.09,173.07,2.8922]
[1730014722000,1.7782,173.19,173.11,2.8916]
[1730014722203,7.09946863,173.12,173.07,7.09946863]
[1730014722411,4.06,173.11,173.08,5.05274145]
[1730014722611,4.06,173.11,173.09,5.05274145]
[1730014722906,4.06,173.11,173.06,7.09946863]
[1730014723106,4.06,173.11,173.07,5.05255348]
[1730014723304,4.06,173.11,173.09,2.8919]
[1730014724813,4.06,173.11,173.1,2.8918]
[1730014733618,11.15946863,173.13,173.12,2.8914]
[1730014742715,14.05086863,173.13,173.03,1.2624]
[1730014742911,7.09946863,173.1,173.04,12.15186933]
[1730014743120,7.09946863,173.1,173.05,5.0524007]
[1730014743417,4.06,173.13,173.09,2.8919]
[1730014743621,7.09946863,173.11,173.09,2.8919]
[1730014753921,7.09946863,173.1,173.09,2.8919]
[1730014760435,7.09946863,173.1,173.09,7.94377658]
[1730014763334,7.09946863,173.1,173.09,2.8919]
[1730014763529,7.09946863,173.1,173.09,7.94461125]
[1730014766137,7.09946863,173.1,173.09,5.05271125]
[1730014766437,7.09946863,173.1,173.07,2.8922]
[1730014766734,7.09946863,173.08,173.07,2.8922]
[1730014766926,7.09946863,173.08,173.07,7.94722651]
[1730014767432,4.06,173.09,173.07,5.05502651]
[1730014767635,4.06,173.09,173.08,2.8921]
[1730014767834,4.06,173.09,173.08,7.94712651]
[1730014770838,4.06,173.09,173.08,2.8921]
[1730014771138,4.06,173.09,173.08,7.94666274]
[1730014771337,4.06,173.09,173.06,2.8923]
[1730014771538,7.09946863,173.08,173.07,5.05526122]
[1730014774442,7.09946863,173.08,173.06,2.8923]
[1730014774627,7.09946863,173.08,173.07,5.05600635]
[1730014778133,7.09946863,173.08,173.06,2.8923]
[1730014778431,7.09946863,173.08,173.07,5.05649616]
[1730014781834,7.09946863,173.08,173.07,2.8923]
[1730014782038,7.09946863,173.08,173.07,7.9508339]
[1730014782641,4.06,173.09,173.07,7.9508339]
[1730014782841,11.15946863,173.09,173.08,5.0585339]
[1730014785147,11.15946863,173.09,173.08,7.9506339]
[1730014785534,11.15946863,173.09,173.08,2.8921]
[1730014785848,11.15946863,173.09,173.08,5.05887607]
[1730014787149,11.15946863,173.09,173.07,2.8923]
[1730014787642,11.15946863,173.09,173.08,2.8921]
[1730014788443,13.79643165,173.19,173.04,7.09946863]
[1730014788645,2.8912,173.14,173.1,2.8917]
[1730014788849,7.09946863,173.12,173.1,2.8917]
[1730014791450,7.09946863,173.11,173.1,2.8917]
[1730014792251,11.15946863,173.11,173.1,2.8917]
[1730014794859,11.15946863,173.11,173.1,7.94962235]
[1730014795054,11.15946863,173.11,173.1,2.8917]
[1730014798259,11.15946863,173.11,173.1,7.95034434]
[1730014798456,11.15946863,173.11,173.1,2.8917]
[1730014803271,11.15946863,173.11,173.1,7.95063989]
[1730014803776,11.15946863,173.11,173.1,2.8917]
[1730014803957,11.15946863,173.11,173.1,7.95093469]
[1730014804171,11.15946863,173.11,173.1,2.8917]
[1730014804364,11.15946863,173.11,173.1,7.95136436]
[1730014805171,13.80616849,173.19,173.1,5.05966436]
[1730014805474,57.4651,173.2,173.12,7.09946863]
[1730014805475,7.09946863,173.17,173.12,7.09946863]
[1730014805666,7.09946863,173.17,173.13,5.05815333]
[1730014805973,7.09946863,173.17,173.12,7.09946863]
[1730014806164,9.99016863,173.17,173.13,5.05645236]
[1730014806364,9.99016863,173.17,173.1,7.09946863]
[1730014806565,7.09946863,173.15,173.11,5.05652162]
[1730014806768,4.06,173.14,173.12,5.05652162]
[1730014806967,7.09946863,173.13,173.07,2.4889]
[1730014807272,7.09946863,173.09,173.08,5.05904728]
[1730014807664,4.06,173.1,173.08,5.05904728]
[1730014807976,11.15946863,173.1,173.09,5.05904728]
[1730014809876,11.15946863,173.1,173.09,7.95094728]
[1730014811177,11.15946863,173.1,173.09,2.8919]
[1730014811371,11.15946863,173.1,173.09,7.95299772]
[1730014811764,4.06,173.1,173.09,7.95299772]
[1730014811967,11.15946863,173.13,173.11,2.8915]
[1730014812171,0.6777,173.19,173.12,5.06109772]
[1730014812371,7.09946863,173.14,173.1,2.8917]
[1730014812571,11.15946863,173.14,173.11,5.05914028]
[1730014812773,11.15946863,173.14,173.12,5.05914028]
[1730014812978,11.15946863,173.14,173.09,7.09946863]
[1730014813178,11.15946863,173.14,173.1,5.0593231]
[1730014813481,7.09946863,173.13,173.11,5.0593231]
[1730014813679,4.06,173.14,173.1,2.8918]
[1730014813680,7.09946863,173.12,173.1,2.8918]
[1730014813979,7.09946863,173.12,173.11,5.05949807]
[1730014815172,7.09946863,173.12,173.11,5.05920222]
[1730014815973,7.09946863,173.13,173.11,5.05920222]
[1730014816281,7.09946863,173.13,173.12,5.05920222]
[1730014816478,7.09946863,173.13,173.12,7.95060222]
[1730014822288,7.09946863,173.13,173.12,2.8914]
[1730014822472,7.09946863,173.13,173.12,7.94785611]
[1730014823577,4.06,173.14,173.12,5.05645611]
[1730014823781,4.06,173.15,173.11,7.09946863]
[1730014823989,4.06,173.15,173.12,5.05589461]
[1730014824184,4.06,173.15,173.11,7.09946863]
[1730014824390,4.06,173.15,173.12,5.05547526]
[1730014824591,4.06,173.15,173.11,7.09946863]
[1730014824786,4.06,173.15,173.12,5.05547526]
[1730014825093,4.06,173.15,173.11,7.09946863]
[1730014825389,4.06,173.15,173.12,5.05508196]
[1730014825591,4.06,173.15,173.11,7.09946863]
[1730014825890,4.06,173.15,173.14,2.8911]
[1730014826482,4.06,173.15,173.14,7.94406636]
[1730014827477,7.09946863,173.18,173.15,2.8909]
[1730014827680,11.15946863,173.18,173.15,2.8909]
[1730014829087,57.30497068,173.24,173.14,7.09946863]
[1730014829286,4.06,173.2,173.19,2.8902]
[1730014829486,101.20228,173.21,173.17,7.09946863]
[1730014829686,101.20228,173.21,173.2,2.8901]
[1730014833383,101.20228,173.21,173.17,7.09946863]
[1730014833384,101.20228,173.21,173.16,2.3725]
[1730014833589,7.09946863,173.2,173.17,2.8906]
[1730014843001,101.20228,173.21,173.17,9.99006863]
[1730014847806,101.20228,173.21,173.18,7.09946863]
[1730014847996,101.20228,173.21,173.18,9.98986863]
[1730014852006,101.20228,173.21,173.19,7.09946863]
[1730014852209,101.20228,173.21,173.2,2.8901]
[1730014859614,101.20228,173.21,173.15,1.2803]
[1730014859815,101.20228,173.21,173.16,7.09946863]
[1730014860206,104.09228,173.21,173.17,2.8906]
[1730014862815,104.09228,173.21,173.16,9.99016863]
[1730014865521,101.20228,173.21,173.18,7.09946863]
[1730014866218,101.20228,173.21,173.18,9.98986863]
[1730014874233,101.20228,173.21,173.19,2.8902]
[1730014874727,101.20228,173.21,173.18,7.09946863]
[1730014874923,101.20228,173.21,173.2,2.8901]
[1730014889935,101.20228,173.21,173.15,1.2803]
[1730014890133,2.8901,173.2,173.16,9.39143689]
[1730014890327,101.20228,173.21,173.17,6.50073689]
[1730014890531,101.20228,173.21,173.16,7.09946863]
[1730014890735,104.09238,173.21,173.17,9.39333776]
[1730014890937,104.09238,173.21,173.17,2.8906]
[1730014892141,104.09238,173.21,173.18,1.44569703]
[1730014892440,104.09238,173.21,173.17,2.8906]
[1730014892942,104.09238,173.21,173.18,1.44569832]
[1730014893140,104.09238,173.21,173.17,2.8906]
[1730014893334,104.09238,173.21,173.18,1.44569832]
[1730014893540,101.20228,173.21,173.16,7.09946863]
[1730014893840,2.8902,173.2,173.17,6.50866651]
[1730014894043,2.8902,173.2,173.16,9.99016863]
[1730014894247,4.04,173.19,173.17,6.51026715]
[1730014894439,4.04,173.19,173.16,9.99016863]
[1730014894639,4.04,173.19,173.17,6.51027741]
[1730014894841,4.04,173.19,173.16,9.99016863]
[1730014895040,4.04,173.19,173.18,9.98986863]
[1730014895241,101.20228,173.21,173.18,9.98986863]
[1730014895640,101.20228,173.21,173.19,1.44569173]
[1730014895943,101.20228,173.21,173.18,9.98986863]
[1730014896140,101.20228,173.21,173.19,6.51095805]
[1730014896338,101.20228,173.21,173.18,9.98986863]
[1730014896536,101.20228,173.21,173.19,6.51095805]
[1730014896736,101.20228,173.21,173.18,9.98986863]
[1730014896932,101.20228,173.21,173.19,6.51095805]
[1730014897130,101.20228,173.21,173.18,9.98986863]
[1730014897347,101.20228,173.21,173.19,6.51178753]
[1730014897538,101.20228,173.21,173.18,9.98986863]
[1730014897738,101.20228,173.21,173.19,6.51178753]
[1730014897937,101.20228,173.21,173.19,2.8903]
[1730014901349,101.20228,173.21,173.2,1.44565424]
[1730014902651,101.20228,173.21,173.19,2.8903]
[1730014904163,101.20228,173.21,173.2,1.44567762]
[1730014912467,101.20228,173.21,173.15,7.09946863]
[1730014912667,7.09946863,173.2,173.16,6.51517848]
[1730014912967,7.09946863,173.2,173.17,6.51517848]
[1730014913160,2.8904,173.19,173.18,1.44582575]
[1730014913361,7.09946863,173.19,173.13,1.2277]
[1730014913556,7.09946863,173.17,173.14,6.51516106]
[1730014913865,7.09946863,173.17,173.15,1.44605864]
[1730014914070,7.09946863,173.17,173.12,7.09946863]
[1730014914464,2.8908,173.16,173.13,6.51341807]
[1730014914768,7.09946863,173.15,173.14,6.51341807]
[1730014915267,7.09946863,173.17,173.14,1.44607012]
[1730014915462,7.09946863,173.17,173.13,2.8912]
[1730014915766,9.99006863,173.17,173.14,6.51142191]
[1730014915958,7.09946863,173.17,173.13,2.8912]
[1730014916159,7.09946863,173.17,173.14,1.44603874]
[1730014916365,7.09946863,173.17,173.13,2.8912]
[1730014916564,7.09946863,173.17,173.14,4.33713874]
[1730014916764,7.09946863,173.17,173.14,2.8911]
[1730014917068,14.02996863,173.18,173.14,2.8911]
[1730014922570,1.2205,173.2,173.14,7.09946863]
[1730014922763,4.04,173.19,173.15,6.50600183]
[1730014922964,4.04,173.19,173.14,7.09946863]
[1730014923165,4.04,173.19,173.17,2.8905]
[1730014926070,4.04,173.19,173.18,2.8904]
[1730014926569,101.20228,173.21,173.18,2.8904]
[1730014926773,4.04,173.2,173.18,2.8904]
[1730014927271,105.24228,173.21,173.19,7.09946863]
[1730014928378,105.24228,173.21,173.2,2.8901]
[1730014936777,101.20228,173.21,173.2,2.8901]
[1730014943685,101.20228,173.21,173.2,9.98956863]
[1730014950484,101.20228,173.21,173.2,11.43509453]
[1730014955295,101.20228,173.21,173.2,9.98956863]
[1730014958597,101.20228,173.21,173.16,2.8908]
[1730014958795,101.20228,173.21,173.18,7.09946863]
[1730014959595,101.20228,173.21,173.19,2.8901]
[1730014964404,101.20228,173.21,173.18,7.09946863]
[1730014964604,101.20228,173.21,173.2,9.98956863]
[1730014988333,101.20228,173.21,173.2,11.43512327]
[1730014989333,101.20228,173.21,173.2,11.43509315]
[1730014989542,101.20228,173.21,173.2,9.98956863]
[1730014989737,101.20228,173.21,173.2,11.43509315]
[1730014990538,101.20228,173.21,173.2,16.49628463]
[1730014993444,101.20228,173.21,173.2,11.43509315]
[1730014993745,101.20228,173.21,173.2,9.39983554]
[1730014997448,101.20228,173.21,173.2,5.06753058]
[1730014997646,101.20228,173.21,173.2,6.5130495]
[1730014999042,108.30174863,173.21,173.2,6.5130495]
[1730014999243,108.30174863,173.21,173.16,2.8907]
[1730014999244,111.19164863,173.21,173.16,2.8907]
[1730014999440,7.09946863,173.2,173.17,6.51406263]
[1730014999746,7.09946863,173.2,173.18,6.51406263]
[1730014999948,7.09946863,173.2,173.19,1.44573908]
[1730015000152,7.09946863,173.2,173.17,2.8906]
[1730015000449,104.09218,173.21,173.18,6.51371255]
[1730015000642,104.09218,173.21,173.17,2.8906]
[1730015000844,104.09218,173.21,173.18,6.51367038]
[1730015001149,104.09218,173.21,173.17,2.8906]
[1730015001545,104.09218,173.21,173.18,6.51322046]
[1730015001743,104.09218,173.21,173.17,2.8906]
[1730015001944,104.09218,173.21,173.18,9.40362046]
[1730015002140,104.09218,173.21,173.18,2.8904]
[1730015005956,111.19164863,173.21,173.18,2.8904]
[1730015021749,111.19164863,173.21,173.17,2.8906]
[1730015027162,111.19164863,173.21,173.16,7.09946863]
[1730015027363,111.19164863,173.21,173.18,2.8904]
[1730015033072,104.09218,173.21,173.18,2.8904]
[1730015033468,7.09946863,173.2,173.18,2.8904]
[1730015033974,2.8906,173.17,173.14,2.891]
[1730015034162,11.13946863,173.17,173.15,1.44587134]
[1730015034366,11.13946863,173.17,173.14,2.891]
[1730015034567,11.13946863,173.17,173.15,1.44587137]
[1730015034772,11.13946863,173.17,173.14,2.891]
[1730015034974,11.13946863,173.17,173.15,1.44586381]
[1730015035177,11.13946863,173.17,173.14,2.891]
[1730015035370,11.13946863,173.17,173.15,1.44585961]
[1730015035577,11.13946863,173.17,173.14,2.891]
[1730015037876,4.04,173.17,173.14,2.891]
[1730015038276,4.04,173.17,173.1,104.07887209]
[1730015038472,2.8908,173.16,173.11,9.99096863]
[1730015039079,2.8908,173.16,173.12,2.8914]
[1730015040073,7.09946863,173.15,173.13,6.50655667]
[1730015040281,7.09946863,173.15,173.13,1.44597552]
[1730015040580,7.09946863,173.15,173.12,2.8914]
[1730015040884,7.09946863,173.15,173.13,6.50608985]
[1730015041177,7.09946863,173.15,173.12,2.8914]
[1730015041380,7.09946863,173.15,173.13,6.50612562]
[1730015041577,7.09946863,173.15,173.12,2.8914]
[1730015041775,7.09946863,173.15,173.13,6.50609694]
[1730015041978,7.09946863,173.15,173.12,2.8914]
[1730015042481,7.09946863,173.15,173.13,1.44598731]
[1730015042674,9.99056863,173.14,173.1,2.8917]
[1730015042875,4.04,173.13,173.11,6.50574343]
[1730015043083,4.04,173.13,173.12,6.50574343]
[1730015045683,4.04,173.13,173.11,2.8915]
[1730015045985,4.04,173.13,173.12,6.50417452]
[1730015049187,4.04,173.13,173.12,1.44603696]
[1730015049394,4.04,173.13,173.11,2.8915]
[1730015049782,4.04,173.13,173.12,1.44603696]
[1730015051696,2.2838,173.2,173.12,1.44603696]
[1730015051885,4.04,173.19,173.14,7.09946863]
[1730015052597,4.04,173.19,173.06,3.7129]
[1730015052598,4.04,173.19,173.18,2.8904]
[1730015052792,4.04,173.19,173.16,7.09946863]
[1730015053192,4.04,173.19,173.17,2.8906]
[1730015055903,101.20228,173.21,173.18,2.8904]
[1730015056097,4.04,173.2,173.18,2.8904]
[1730015061503,4.04,173.2,173.17,2.8906]
[1730015073605,4.04,173.2,173.11,3.6953]
[1730015073809,2.8907,173.17,173.13,7.09946863]
[1730015074003,4.04,173.16,173.14,6.50945541]
[1730015074201,4.04,173.16,173.13,7.09946863]
[1730015074403,4.04,173.16,173.14,6.50999306]
[1730015074707,4.04,173.16,173.13,9.99056863]
[1730015074909,4.04,173.16,173.14,6.51011629]
[1730015075110,4.04,173.16,173.13,7.09946863]
[1730015075612,4.04,173.16,173.14,6.50990939]
[1730015075910,4.04,173.16,173.13,7.09946863]
[1730015076114,4.04,173.16,173.14,6.50990427]
[1730015076408,4.04,173.16,173.14,2.8911]
[1730015103445,11.13946863,173.16,172.99,4.33718024]
[1730015103642,7.09946863,173.14,173.09,7.09946863]
[1730015103842,11.13946863,173.16,173.1,13.611027]
[1730015104044,11.13946863,173.16,173.11,6.51155837]
[1730015104240,11.13946863,173.16,173.12,6.51155837]
[1730015104440,11.13946863,173.16,173.13,6.51155837]
[1730015104636,2.891,173.15,173.11,2.8916]
[1730015104837,2.891,173.15,173.12,6.51149604]
[1730015105038,2.891,173.15,173.13,1.44613479]
[1730015105244,2.891,173.15,173.11,2.8916]
[1730015105445,2.891,173.15,173.12,6.51119096]
[1730015105647,2.891,173.15,173.11,2.8916]
[1730015105837,2.891,173.15,173.12,6.51128947]
[1730015106039,2.891,173.15,173.11,2.8916]
[1730015106247,2.891,173.15,173.12,6.51094856]
[1730015106553,2.891,173.15,173.11,2.8916]
[1730015106745,2.891,173.15,173.12,6.51098443]
[1730015106947,2.891,173.15,173.11,2.8916]
[1730015107148,2.891,173.15,173.12,6.51098815]
[1730015107348,2.891,173.15,173.11,2.8916]
[1730015107534,2.891,173.15,173.12,1.44617127]
[1730015107848,2.891,173.15,173.11,2.8916]
[1730015108043,2.891,173.15,173.12,1.44616999]
[1730015108240,2.891,173.15,173.11,2.8916]
[1730015108442,2.891,173.15,173.12,1.44616999]
[1730015108659,2.891,173.15,173.12,2.8914]
[1730015111271,2.8911,173.14,173.11,2.8916]
[1730015113751,7.09946863,173.15,173.11,2.8916]
[1730015113948,4.04,173.16,173.11,7.09946863]
[1730015114150,4.04,173.16,173.13,2.8912]
[1730015115453,6.9308,173.16,173.13,2.8912]
[1730015120155,4.04,173.16,173.13,2.8912]
[1730015128150,4.04,173.16,173.13,2.82624921]
[1730015128455,4.04,173.15,173.13,2.82624921]
[1730015134047,9.99016863,173.17,173.13,2.82624921]
[1730015134249,64.45752776,173.22,173.2,2.8901]
[1730015134457,105.24228,173.21,173.2,2.8901]
[1730015136855,105.24228,173.21,173.19,2.8902]
[1730015141771,105.24228,173.21,173.18,9.98986863]
[1730015145573,105.24228,173.21,173.19,2.8903]
[1730015146771,105.24228,173.21,173.19,9.98976863]
[1730015148369,101.20228,173.21,173.2,9.98956863]
[1730015149773,101.20228,173.21,173.16,5.05374771]
[1730015149774,101.20228,173.21,173.16,2.8906]
[1730015149975,4.02,173.2,173.17,7.09946863]
[1730015150883,4.02,173.2,173.18,2.8904]
[1730015153179,4.02,173.2,173.19,2.8903]
[1730015168996,101.20228,173.21,173.19,7.09946863]
[1730015169190,101.20228,173.21,173.2,2.8901]
[1730015169391,99.26328,173.21,173.2,2.8901]
[1730015175313,99.26328,173.21,173.2,9.98956863]
[1730015179599,4.02,173.24,173.2,7.09946863]
[1730015179898,4.02,173.24,173.22,9.98916863]
[1730015197619,7.09946863,173.28,173.22,9.98916863]
[1730015197620,2.889,173.27,173.22,7.09946863]
[1730015197919,4.02,173.27,173.26,7.09946863]
[1730015198725,4.02,173.27,173.26,9.98846863]
[1730015201827,2.8883,173.31,173.28,2.8887]
[1730015202030,2.8883,173.31,173.29,7.09946863]
[1730015202220,56.16,173.33,173.3,7.09946863]
[1730015202526,4.02,173.32,173.3,7.09946863]
[1730015202826,4.02,173.32,173.3,9.98776863]
[1730015204227,4.02,173.32,173.25,1.2591]
[1730015204525,9.98796863,173.3,173.26,9.98856863]
[1730015206130,9.98796863,173.3,173.27,2.8889]
[1730015209632,7.09946863,173.3,173.27,2.8889]
[1730015211235,9.98776863,173.31,173.27,2.8889]
[1730015213336,9.98776863,173.31,173.27,9.98836863]
[1730015215331,2.8878,173.34,173.3,9.98776863]
[1730015215532,4.02,173.33,173.3,9.98776863]
[1730015216435,7.09946863,173.31,173.26,7.09946863]
[1730015217231,9.98776863,173.31,173.27,2.8888]
[1730015221744,2.8883,173.31,173.28,7.09946863]
[1730015222644,7.09946863,173.32,173.28,7.09946863]
[1730015222839,4.02,173.33,173.29,7.09946863]
[1730015223447,4.02,173.33,173.31,7.09946863]
[1730015225143,1.1718,173.41,173.31,7.09946863]
[1730015225144,8.04065263,173.48,173.32,4.02]
[1730015225344,8.04065263,173.48,173.39,7.09946863]
[1730015225345,7.09946863,173.46,173.39,7.09946863]
[1730015226047,4.02,173.45,173.39,7.09946863]
[1730015226245,4.02,173.45,173.41,7.09946863]
[1730015227141,4.02,173.45,173.41,2.8866]
[1730015227348,11.11946863,173.45,173.39,7.09946863]
[1730015228253,11.11946863,173.45,173.4,2.8868]
[1730015228655,4.02,173.45,173.4,2.8868]
[1730015228953,11.11946863,173.45,173.4,2.8868]
[1730015229854,4.02,173.45,173.42,2.8864]
[1730015231950,4.04,173.45,173.44,2.8861]
[1730015235551,4.04,173.45,173.43,7.09946863]
[1730015235752,4.04,173.45,173.43,9.98566863]
[1730015239952,4.04,173.45,173.43,2.8862]
[1730015240153,6.9257,173.47,173.43,2.8862]
[1730015240359,2.8852,173.5,173.46,2.8858]
[1730015240653,11.13946863,173.49,173.43,7.09946863]
[1730015242253,4.04,173.48,173.45,2.8858]
[1730015244559,4.04,173.48,173.45,9.98526863]
[1730015249457,4.04,173.48,173.45,7.09946863]
[1730015249660,4.04,173.48,173.4,3.7639]
[1730015249661,4.04,173.48,173.46,9.98516863]
[1730015249965,4.04,173.48,173.4,3.7639]
[1730015250165,2.8856,173.47,173.45,7.09946863]
[1730015253161,4.04,173.48,173.45,7.09946863]
[1730015253367,6.9255,173.48,173.45,7.09946863]
[1730015254461,2.8857,173.47,173.45,7.09946863]
[1730015259863,2.8857,173.47,173.44,2.8861]
[1730015262271,6.9055,173.48,173.45,2.8859]
[1730015266173,7.09946863,173.47,173.4,3.7639]
[1730015266474,2.8864,173.43,173.4,9.62546863]
[1730015267374,6.9061,173.44,173.4,12.51216863]
[1730015279686,6.9061,173.44,173.4,9.62546863]
[1730015279887,6.9061,173.44,173.41,2.8866]
[1730015289089,2.8859,173.46,173.42,2.8863]
[1730015289286,6.9059,173.46,173.42,2.8863]
[1730015291895,2.8851,173.5,173.46,2.8856]
[1730015292096,4.02,173.49,173.44,7.09946863]
[1730015293197,6.9053,173.49,173.44,7.09946863]
[1730015293797,4.02,173.49,173.44,7.09946863]
[1730015293996,4.02,173.49,173.46,2.8858]
[1730015297807,56.08,173.54,173.45,7.09946863]
[1730015297992,9.98446863,173.51,173.47,2.8854]
[1730015298196,7.09946863,173.5,173.4,2.526]
[1730015298395,7.09946863,173.47,173.41,13.59450942]
[1730015298596,7.09946863,173.47,173.41,7.09946863]
[1730015299019,7.09946863,173.47,173.44,2.886]
[1730015301006,9.98546863,173.45,173.41,2.8865]
[1730015301200,4.02,173.44,173.41,2.8865]
[1730015301606,7.09946863,173.43,173.41,2.8865]
[1730015306309,2.8867,173.41,173.37,2.8873]
[1730015306505,7.09946863,173.4,173.37,2.8873]
[1730015306720,11.11946863,173.4,173.35,7.09946863]
[1730015308321,11.11946863,173.4,173.37,2.8871]
[1730015310012,4.02,173.4,173.37,2.8871]
[1730015324121,11.11946863,173.4,173.37,2.8871]
[1730015324322,2.8861,173.44,173.38,7.09946863]
[1730015324526,11.11946863,173.43,173.4,2.8867]
[1730015327527,4.02,173.43,173.42,2.8864]
[1730015330733,11.11946863,173.45,173.42,2.8864]
[1730015333529,4.02,173.45,173.43,2.8863]
[1730015333732,11.11946863,173.45,173.43,2.8863]
[1730015338134,4.02,173.45,173.43,2.8863]
[1730015340047,2.8866,173.42,173.38,2.887]
[1730015340238,7.09946863,173.41,173.38,2.887]
[1730015340744,7.09946863,173.41,173.39,2.8869]
[1730015348843,11.11946863,173.41,173.39,2.8869]
[1730015349248,11.11946863,173.41,173.36,2.4444]
[1730015349445,2.8868,173.4,173.37,2.8871]
[1730015350781,7.09946863,173.4,173.37,2.8871]
[1730015355152,11.11946863,173.41,173.38,2.887]
[1730015355348,4.02,173.41,173.37,7.09946863]
[1730015356369,4.02,173.41,173.39,2.8868]
[1730015359753,11.11946863,173.41,173.39,2.8868]
[1730015359951,11.11946863,173.41,173.35,7.09946863]
[1730015360152,11.11946863,173.41,173.38,2.8871]
[1730015363469,4.02,173.41,173.35,7.09946863]
[1730015363758,4.02,173.41,173.39,2.8868]
[1730015364366,4.02,173.41,173.35,7.09946863]
[1730015365258,4.02,173.41,173.39,2.8868]
[1730015369070,4.02,173.41,173.4,2.8868]
[1730015370664,7.09946863,173.43,173.4,2.8868]
[1730015370864,4.02,173.42,173.4,2.8868]
[1730015376060,11.11946863,173.42,173.32,5.2253]
[1730015376262,11.11946863,173.42,173.35,7.09946863]
[1730015376467,11.11946863,173.42,173.36,6.48800126]
[1730015376674,11.11946863,173.42,173.39,2.8868]
[1730015382490,11.11946863,173.42,173.35,7.09946863]
[1730015382491,4.02,173.42,173.4,2.8867]
[1730015383374,4.02,173.42,173.41,2.8866]
[1730015385082,7.09946863,173.43,173.41,2.8866]
[1730015385277,2.4478,173.49,173.42,7.09946863]
[1730015385473,7.09946863,173.48,173.42,7.09946863]
[1730015385678,7.09946863,173.48,173.38,1.2463]
[1730015385679,4.02,173.48,173.43,7.09946863]
[1730015385974,11.11946863,173.48,173.43,7.09946863]
[1730015386478,4.02,173.47,173.43,7.09946863]
[1730015387380,4.02,173.47,173.45,2.8858]
[1730015397578,4.02,173.47,173.43,7.09946863]
[1730015397579,4.02,173.47,173.46,2.8858]
[1730015400887,11.11946863,173.47,173.42,7.09946863]
[1730015401089,11.11946863,173.47,173.44,2.886]
[1730015402101,11.11946863,173.47,173.45,2.8859]
[1730015408405,1.2814,173.49,173.44,7.09946863]